bitfinex/quotes_BTCUSD_20220226
["timestamp","ask_amount","ask_price","bid_price","bid_amount"]
[1645876809017,0.3839,38979.0,38974.0,0.18942219]
[1645876809217,0.1906,38979.0,38974.0,0.37884438]
[1645876809418,0.1906,38979.0,38974.0,0.4558464]
[1645876809822,0.00028051,38982.0,38974.0,0.4558464]
[1645876810019,0.1181,38983.0,38974.0,0.4558464]
[1645876810218,0.00028052,38982.0,38974.0,0.4558464]
[1645876810418,0.00028052,38982.0,38974.0,0.37884438]
[1645876810662,0.00028052,38982.0,38974.0,0.39167838]
[1645876810861,0.00028052,38982.0,38974.0,0.45584638]
[1645876811061,0.00028052,38982.0,38975.0,0.3]
[1645876811262,0.11849724,38985.0,38975.0,0.37703]
[1645876811466,0.00028052,38982.0,38975.0,0.37703]
[1645876812261,0.00028052,38982.0,38975.0,0.37203]
[1645876812464,0.11849724,38985.0,38975.0,0.37203]
[1645876812662,0.11849724,38985.0,38975.0,0.37603]
[1645876812862,0.00028672,38982.0,38975.0,0.37603]
[1645876813061,0.00028672,38982.0,38975.0,0.07603]
[1645876813262,0.00028672,38982.0,38975.0,0.304]
[1645876813662,0.11849724,38985.0,38976.0,0.06416513]
[1645876813863,0.00028672,38982.0,38977.0,0.3]
[1645876814307,0.00028672,38982.0,38981.0,0.18942219]
[1645876814511,0.00028672,38982.0,38981.0,0.37884438]
[1645876814906,0.11849724,38989.0,38981.0,0.37884438]
[1645876815110,0.14416724,38989.0,38981.0,0.37884438]
[1645876815307,0.00028672,38983.0,38981.0,0.37884438]
[1645876815708,0.196,38990.0,38982.0,1.45]
[1645876815913,0.11002809,38992.0,38982.0,1.5014]
[1645876816111,0.11002809,38992.0,38985.0,0.1]
[1645876816310,0.11002809,39000.0,38989.0,0.6425]
[1645876816509,0.1152,39004.0,38990.0,0.3514]
[1645876816708,0.14492331,39003.0,38990.0,0.3514]
[1645876817210,0.11733829,39001.0,38993.0,0.17826156]
[1645876817508,0.11733829,39001.0,38994.0,0.0514]
[1645876818354,0.1152,39004.0,38994.0,0.0514]
[1645876818556,0.11733829,39005.0,38995.0,0.3]
[1645876818857,0.0001708,38999.0,38996.0,0.0514]
[1645876819756,0.16257521,39004.0,39000.0,0.37884438]
[1645876820359,0.11853853,39005.0,39000.0,0.37884438]
[1645876820554,0.11853853,39005.0,39000.0,0.38184438]
[1645876820955,0.11733829,39005.0,39000.0,0.38184438]
[1645876821157,0.00030009,39004.0,39000.0,0.38184438]
[1645876821808,0.00030009,39004.0,39000.0,0.37884438]
[1645876822113,0.11733829,39005.0,39000.0,0.37884438]
[1645876822408,0.00030009,39004.0,39000.0,0.37884438]
[1645876823012,0.11733829,39003.0,39000.0,0.37884438]
[1645876823609,0.11763838,39003.0,39000.0,0.37884438]
[1645876824009,0.11733829,39001.0,39000.0,0.37884438]
[1645876825762,0.52063029,39001.0,39000.0,0.37884438]
[1645876825962,0.14300829,39001.0,39000.0,0.37884438]
[1645876826364,0.11733829,39001.0,39000.0,0.37884438]
[1645876826564,0.0003001,39002.0,39000.0,0.37884438]
[1645876826962,0.02567,39004.0,38990.0,0.3]
[1645876827162,0.00030009,39003.0,39001.0,0.18942219]
[1645876828169,0.241922,39011.0,39001.0,0.18942219]
[1645876828467,0.00030009,39004.0,39002.0,0.3]
[1645876828664,0.00030009,39004.0,39003.0,0.0514]
[1645876828865,0.00030009,39004.0,39003.0,0.3514]
[1645876829065,0.00030009,39004.0,39003.0,0.0514]
[1645876829316,1.0066,39012.0,39003.0,0.1014]
[1645876829616,1.0066,39012.0,39003.0,0.115521]
[1645876829815,1.0066,39012.0,39004.0,0.1]
[1645876830016,1.0066,39012.0,39005.0,0.0514]
[1645876830719,0.00017083,39010.0,39005.0,0.0514]
[1645876831317,0.00017083,39010.0,39006.0,0.0641162]
[1645876831616,1.0066,39012.0,39006.0,0.4641162]
[1645876831816,1.0066,39012.0,39006.0,0.1]
[1645876832019,1.0066,39012.0,39007.0,0.3]
[1645876832020,3.3e-07,39010.0,39007.0,0.3]
[1645876832221,3.3e-07,39010.0,39008.0,0.1]
[1645876832422,3.3e-07,39010.0,39009.0,1.18332219]
[1645876832619,3.3e-07,39010.0,39009.0,1.37274438]
[1645876832819,0.0011,39018.0,39010.0,0.02567]
[1645876833071,0.0011,39018.0,39011.0,0.17707]
[1645876833267,0.0011,39018.0,39012.0,0.37567]
[1645876833463,0.0011,39018.0,39013.0,0.077039]
[1645876833663,0.0011,39018.0,39013.0,0.127039]
[1645876833862,0.0011,39018.0,39014.0,0.05]
[1645876834063,0.0011,39018.0,39015.0,0.0514]
[1645876834264,0.0011,39018.0,39015.0,0.1014]
[1645876834463,0.0011,39018.0,39016.0,0.3]
[1645876834663,0.0011,39018.0,39016.0,0.351325]
[1645876835664,0.00127083,39018.0,39016.0,0.351325]
[1645876836466,0.0011,39018.0,39016.0,0.351325]
[1645876836668,0.0011,39018.0,39016.0,0.355325]
[1645876836905,0.00140057,39018.0,39016.0,0.355325]
[1645876837307,0.00140057,39018.0,39016.0,0.0554]
[1645876837506,0.00140057,39018.0,39016.0,0.06109742]
[1645876837706,0.0011,39018.0,39016.0,0.25051961]
[1645876837907,0.0011,39018.0,39016.0,0.4359418]
[1645876838107,0.00140057,39018.0,39016.0,0.4359418]
[1645876838909,0.0011,39018.0,39016.0,0.4359418]
[1645876839109,0.0012706,39018.0,39016.0,0.4359418]
[1645876840112,0.0011,39018.0,39016.0,0.4359418]
[1645876840312,0.0012706,39018.0,39016.0,0.4359418]
[1645876840567,0.0012706,39018.0,39016.0,0.4399418]
[1645876840767,0.0012706,39018.0,39016.0,0.7399418]
[1645876840968,0.0012706,39018.0,39016.0,0.4399418]
[1645876841171,0.0012706,39018.0,39016.0,0.7399418]
[1645876841370,0.0011,39018.0,39016.0,0.7399418]
[1645876841567,0.00140083,39018.0,39016.0,0.7399418]
[1645876841767,0.00140083,39018.0,39016.0,0.4399418]
[1645876841968,0.00140083,39018.0,39016.0,0.4359418]
[1645876842270,0.00140083,39018.0,39017.0,0.652]
[1645876842469,0.0011,39018.0,39017.0,0.052]
[1645876842869,0.00140083,39018.0,39017.0,0.052]
[1645876843072,0.00140083,39018.0,39017.0,0.43084438]
[1645876843673,0.0011,39018.0,39017.0,0.43084438]
[1645876846618,0.0011,39018.0,39017.0,0.43384438]
[1645876847316,0.0011,39018.0,39017.0,0.43339308]
[1645876848061,0.0011,39018.0,39017.0,0.38084438]
[1645876849262,0.52173029,39018.0,39017.0,0.38084438]
[1645876849459,0.53198029,39018.0,39017.0,0.38084438]
[1645876849962,0.53198029,39018.0,39017.0,0.18942219]
[1645876850160,0.15435829,39018.0,39017.0,0.36584438]
[1645876850361,0.53198029,39018.0,39017.0,0.36584438]
[1645876850562,0.15435829,39018.0,39017.0,0.35605208]
[1645876850763,0.53298029,39018.0,39017.0,0.17642219]
[1645876851165,0.53298029,39018.0,39017.0,0.35605208]
[1645876851830,0.53198029,39018.0,39017.0,0.35605208]
[1645876852029,0.45435829,39018.0,39017.0,0.35605208]
[1645876854631,0.45535829,39018.0,39017.0,0.35605208]
[1645876855232,1.23815829,39018.0,39017.0,0.35605208]
[1645876855587,1.76718029,39018.0,39017.0,0.35605208]
[1645876856590,1.76818029,39018.0,39017.0,0.35605208]
[1645876856786,0.98538029,39018.0,39017.0,0.35605208]
[1645876857187,1.76818029,39018.0,39017.0,0.35605208]
[1645876857383,1.66818029,39018.0,39017.0,0.35605208]
[1645876857584,1.76818029,39018.0,39017.0,0.35605208]
[1645876857789,0.80847,39015.0,39002.0,0.05]
[1645876857985,0.14015921,39003.0,38996.0,0.3451]
[1645876858185,0.14015921,39003.0,38996.0,0.1499]
[1645876858585,0.14015921,39003.0,38996.0,0.0999]
[1645876860328,0.14015921,39003.0,38996.0,0.09949]
[1645876861130,0.44015921,39003.0,38996.0,0.09949]
[1645876861529,0.14015921,39003.0,38996.0,0.09949]
[1645876861735,0.44015921,39003.0,38996.0,0.09949]
[1645876861929,0.14015921,39003.0,38996.0,0.09949]
[1645876862530,0.44015921,39003.0,38996.0,0.09949]
[1645876863364,0.11733829,39000.0,38996.0,0.09949]
[1645876863561,0.3,39002.0,38996.0,0.09949]
[1645876863763,0.11733829,39001.0,38996.0,0.09949]
[1645876864664,0.11733829,39005.0,38996.0,0.10349]
[1645876865863,0.01025,39006.0,38996.0,0.10349]
[1645876866164,0.11733829,39005.0,38996.0,0.09949]
[1645876866363,0.14021536,39003.0,38993.0,0.062828]
[1645876866916,0.14021536,39003.0,38993.0,0.112828]
[1645876867214,0.13875339,39003.0,38993.0,0.112828]
[1645876868615,0.25609168,39003.0,38993.0,0.062828]
[1645876868818,0.25609168,39003.0,38993.0,0.05]
[1645876869421,0.13875339,39003.0,38993.0,0.05]
[1645876869816,0.13875339,39003.0,38994.0,0.012828]
[1645876870664,0.13875339,39003.0,38994.0,0.016828]
[1645876870865,0.11733829,39005.0,38995.0,0.06413398]
[1645876871064,0.11733829,39005.0,38995.0,0.11413398]
[1645876871464,0.31025,39006.0,38995.0,0.11413398]
[1645876871665,0.11733829,39003.0,38995.0,0.05]
[1645876871867,0.11733829,39003.0,38994.0,0.05]
[1645876872068,0.3,39002.0,38990.0,0.24422221]
[1645876872465,0.11733829,39003.0,38990.0,0.24422221]
[1645876872667,0.15885582,38999.0,38990.0,0.11595121]
[1645876873067,0.15885582,38999.0,38990.0,0.00570121]
[1645876873267,0.15885582,38999.0,38991.0,0.05]
[1645876873469,0.15885582,38999.0,38990.0,0.00570121]
[1645876874068,0.15885582,38999.0,38990.0,0.00529121]
[1645876874749,0.15885582,38999.0,38990.0,0.00929121]
[1645876876046,0.15885582,38999.0,38990.0,0.00529121]
[1645876879970,0.11733829,38996.0,38990.0,0.00529121]
[1645876880167,0.3,38995.0,38990.0,0.00529121]
[1645876880365,0.11733829,38993.0,38990.0,0.00529121]
[1645876882817,0.25735583,38993.0,38990.0,0.00829121]
[1645876884020,0.14001754,38993.0,38990.0,0.00529121]
[1645876884219,0.11733829,38992.0,38990.0,0.00529121]
[1645876884419,0.02567,38997.0,38992.0,0.23467657]
[1645876885226,0.17596918,38997.0,38992.0,0.23467657]
[1645876885970,0.01025,38996.0,38992.0,0.23467657]
[1645876886565,0.17596918,38997.0,38992.0,0.23467657]
[1645876886765,0.17596918,38997.0,38992.0,0.23667657]
[1645876887367,0.03592,39000.0,38992.0,0.23667657]
[1645876887568,0.377622,38999.0,38992.0,0.23667657]
[1645876887871,0.01025,38998.0,38992.0,0.23467657]
[1645876888067,0.02567,39000.0,38992.0,0.23467657]
[1645876888068,0.01025,38999.0,38992.0,0.23467657]
[1645876888269,0.403292,38998.0,38992.0,0.23467657]
[1645876889069,0.377622,38996.0,38992.0,0.23467657]
[1645876890718,0.378622,38996.0,38992.0,0.23467657]
[1645876890919,0.001,38996.0,38992.0,0.23467657]
[1645876892120,0.377622,38997.0,38992.0,0.23467657]
[1645876892720,0.378622,38997.0,38992.0,0.23467657]
[1645876893965,0.377622,38997.0,38992.0,0.23467657]
[1645876894767,0.377622,38998.0,38992.0,0.23467657]
[1645876895669,0.377622,38998.0,38992.0,0.23667657]
[1645876896821,0.377622,38998.0,38992.0,0.23767657]
[1645876897024,0.377622,38998.0,38992.0,0.23567657]
[1645876897221,0.03592,39000.0,38992.0,0.23567657]
[1645876897422,0.403292,38999.0,38992.0,0.23567657]
[1645876898022,0.403292,38999.0,38992.0,0.23467657]
[1645876898421,0.377622,38999.0,38992.0,0.23467657]
[1645876898822,0.377622,38999.0,38992.0,0.23567657]
[1645876900023,0.377622,38999.0,38992.0,0.23467657]
[1645876900224,0.403292,38999.0,38992.0,0.23467657]
[1645876900876,0.403292,38996.0,38992.0,0.23467657]
[1645876901069,0.377622,38994.0,38992.0,0.23467657]
[1645876901271,0.0514,38993.0,38992.0,0.23467657]
[1645876901470,0.429015,38993.0,38992.0,0.23467657]
[1645876901668,0.59504604,38993.0,38992.0,0.23467657]
[1645876902071,0.59504604,38993.0,38990.0,0.00529121]
[1645876902072,0.403285,38991.0,38990.0,0.00529121]
[1645876902269,0.556375,38991.0,38990.0,0.00529121]
[1645876902870,0.557375,38991.0,38990.0,0.00529121]
[1645876903472,0.15409,38991.0,38990.0,0.00529121]
[1645876903670,0.06265,38991.0,38990.0,0.00529121]
[1645876903870,0.06257103,38991.0,38990.0,0.00529121]
[1645876904069,0.06157103,38991.0,38990.0,0.00529121]
[1645876904525,0.05132103,38991.0,38990.0,0.00529121]
[1645876904828,0.05332103,38991.0,38990.0,0.00529121]
[1645876905424,0.43093603,38991.0,38990.0,0.00529121]
[1645876905624,0.05332103,38991.0,38990.0,0.00529121]
[1645876905824,0.43093603,38991.0,38990.0,0.00529121]
[1645876906030,0.43085846,38991.0,38990.0,0.00529121]
[1645876906225,0.05324346,38991.0,38990.0,0.00529121]
[1645876906431,0.002,38991.0,38990.0,0.00529121]
[1645876906828,0.002,38991.0,38990.0,0.00629121]
[1645876908171,0.25413607,38996.0,38990.0,0.00529121]
[1645876908772,0.25413607,38996.0,38990.0,0.00729121]
[1645876909372,0.377615,38995.0,38990.0,0.00729121]
[1645876909772,0.25413607,38996.0,38990.0,0.00729121]
[1645876910772,0.25413607,38996.0,38990.0,0.00529121]
[1645876910773,0.25513607,38996.0,38990.0,0.00529121]
[1645876910974,0.00278319,38994.0,38990.0,0.00529121]
[1645876911815,0.377615,38993.0,38990.0,0.00529121]
[1645876912016,0.00278319,38994.0,38990.0,0.00529121]
[1645876912617,0.00213367,38994.0,38990.0,0.00029121]
[1645876912818,0.00738972,38994.0,38990.0,0.00029121]
[1645876913822,0.01164577,38994.0,38990.0,0.00029121]
[1645876914016,0.01064577,38994.0,38990.0,0.00029121]
[1645876914819,0.377615,38993.0,38990.0,0.00029121]
[1645876915018,0.01590182,38994.0,38990.0,0.00029121]
[1645876915892,0.02015787,38994.0,38990.0,0.00029121]
[1645876916095,0.01915787,38994.0,38990.0,0.00029121]
[1645876916397,0.377615,38993.0,38990.0,0.00029121]
[1645876916592,0.31915787,38994.0,38990.0,0.00029121]
[1645876916993,0.1,38992.0,38990.0,0.00029121]
[1645876917195,0.713535,38991.0,38990.0,0.00029121]
[1645876918997,0.40762392,38991.0,38990.0,0.00029121]
[1645876919924,0.38629284,38991.0,38990.0,0.00029121]
[1645876920525,0.00867784,38991.0,38990.0,0.00029121]
[1645876920925,0.00867784,38991.0,38990.0,0.00129121]
[1645876920926,0.38637571,38991.0,38990.0,0.00129121]
[1645876921125,0.39063176,38991.0,38990.0,0.00129121]
[1645876921328,0.69063176,38991.0,38990.0,0.00129121]
[1645876922026,0.69497068,38991.0,38990.0,0.00129121]
[1645876922825,0.69497068,38991.0,38990.0,0.00029121]
[1645876923078,0.7249796,38991.0,38990.0,0.00029121]
[1645876923974,0.72506247,38991.0,38990.0,0.00029121]
[1645876924278,0.05170352,38991.0,38990.0,0.00029121]
[1645876924473,0.42931852,38991.0,38990.0,0.00029121]
[1645876924678,0.40364852,38991.0,38990.0,0.00029121]
[1645876924976,0.40373139,38991.0,38990.0,0.00029121]
[1645876925173,0.40798744,38991.0,38990.0,0.00029121]
[1645876925975,0.40807031,38991.0,38990.0,0.00029121]
[1645876926175,0.41232636,38991.0,38990.0,0.00029121]
[1645876926576,0.41024909,38991.0,38990.0,0.00029121]
[1645876927025,0.41033196,38991.0,38990.0,0.00029121]
[1645876927527,0.71033196,38991.0,38990.0,0.00029121]
[1645876927925,0.41033196,38991.0,38990.0,0.00029121]
[1645876928126,0.41041483,38991.0,38990.0,0.00029121]
[1645876928526,0.41259361,38991.0,38990.0,0.00029121]
[1645876928727,0.4124921,38991.0,38990.0,0.00029121]
[1645876929128,0.41257497,38991.0,38990.0,0.00029121]
[1645876929728,0.41683102,38991.0,38990.0,0.00029121]
[1645876930028,0.41691389,38991.0,38990.0,0.00029121]
[1645876930675,0.41899116,38991.0,38990.0,0.00029121]
[1645876930875,0.41999116,38991.0,38990.0,0.00029121]
[1645876931076,0.42007403,38991.0,38990.0,0.00029121]
[1645876931881,0.42225281,38991.0,38990.0,0.00029121]
[1645876932076,0.42125281,38991.0,38990.0,0.00029121]
[1645876932277,0.42133568,38991.0,38990.0,0.00029121]
[1645876932477,0.44700568,38991.0,38990.0,0.00029121]
[1645876932678,0.42351446,38991.0,38990.0,0.00029121]
[1645876932878,0.4,38990.0,38984.0,0.00029946]
[1645876933879,0.4,38990.0,38979.0,0.231301]
[1645876933880,0.12681989,38986.0,38979.0,0.231301]
[1645876934079,0.12681989,38986.0,38984.0,0.00029945]
[1645876934326,0.40008287,38990.0,38984.0,0.00029945]
[1645876934827,0.40433892,38990.0,38984.0,0.00029945]
[1645876935025,0.00433892,38990.0,38978.0,0.06416024]
[1645876935226,8.287e-05,38986.0,38984.0,0.00029945]
[1645876935427,0.00433892,38990.0,38986.0,0.00016574]
[1645876935826,0.00859497,38990.0,38986.0,0.00016574]
[1645876936228,0.00867784,38990.0,38986.0,0.00016574]
[1645876936827,0.01293389,38990.0,38986.0,0.00016574]
[1645876937331,0.01301676,38990.0,38986.0,0.00016574]
[1645876937930,0.01727281,38990.0,38986.0,0.00016574]
[1645876938373,0.01735568,38990.0,38986.0,0.00016574]
[1645876938576,0.02752828,38990.0,38986.0,0.00016574]
[1645876938974,0.03278433,38990.0,38986.0,0.00016574]
[1645876939174,0.3,38989.0,38986.0,0.00016574]
[1645876940075,0.30207727,38989.0,38986.0,0.00016574]
[1645876940474,0.30216014,38989.0,38986.0,0.00016574]
[1645876940674,0.00216014,38989.0,38986.0,0.00016574]
[1645876941076,0.00641619,38989.0,38987.0,6.421e-05]
[1645876941377,0.00649906,38989.0,38987.0,6.421e-05]
[1645876942029,0.01075511,38989.0,38987.0,6.421e-05]
[1645876942433,0.01083798,38989.0,38987.0,6.421e-05]
[1645876943530,0.4,38988.0,38984.0,0.00029411]
[1645876943729,0.4,38988.0,38984.0,0.00059356]
[1645876944531,0.40008287,38988.0,38984.0,0.00059356]
[1645876944730,8.287e-05,38988.0,38984.0,0.00029411]
[1645876944934,8.287e-05,38988.0,38984.0,0.00059355]
[1645876945574,0.00016574,38988.0,38984.0,0.00059355]
[1645876945974,0.00016574,38988.0,38984.0,0.00029411]
[1645876946279,0.00016574,38988.0,38984.0,0.00059355]
[1645876946674,0.00024861,38988.0,38984.0,0.00059355]
[1645876947076,0.13433719,38986.0,38984.0,0.00029411]
[1645876947277,0.13433719,38986.0,38984.0,0.00059355]
[1645876948377,0.13433719,38986.0,38984.0,0.00029411]
[1645876948577,0.13442006,38986.0,38984.0,0.00029411]
[1645876949633,0.13442006,38986.0,38984.0,0.00021124]
[1645876949832,0.377615,38985.0,38984.0,0.00021124]
[1645876950228,0.1,38985.0,38984.0,0.00021124]
[1645876951032,0.101,38985.0,38984.0,0.00021124]
[1645876951830,0.001,38985.0,38984.0,0.00021124]
[1645876952231,0.234344,38986.0,38984.0,0.00021124]
[1645876952430,0.377615,38985.0,38984.0,0.00021124]
[1645876953379,0.135344,38986.0,38984.0,0.00021124]
[1645876953580,0.235344,38986.0,38984.0,0.00021124]
[1645876953782,0.377615,38985.0,38984.0,0.00021124]
[1645876954980,0.001,38985.0,38984.0,0.00021124]
[1645876955184,0.378615,38985.0,38984.0,0.00021124]
[1645876956183,0.403285,38985.0,38984.0,0.00021124]
[1645876956586,0.413545,38985.0,38984.0,0.00021124]
[1645876957042,0.414545,38985.0,38984.0,0.00021124]
[1645876957943,0.714545,38985.0,38984.0,0.00021124]
[1645876958143,0.713545,38985.0,38984.0,0.00021124]
[1645876958744,1.597745,38985.0,38984.0,0.00021124]
[1645876958943,1.70056455,38985.0,38984.0,1.24e-06]
[1645876959146,0.80847,38980.0,38967.0,0.21666848]
[1645876959345,0.80847,38980.0,38971.0,0.00119695]
[1645876959346,0.02567,38978.0,38971.0,0.00119695]
[1645876959644,0.14377286,38976.0,38971.0,0.00119695]
[1645876959843,0.677615,38975.0,38971.0,0.00119695]
[1645876960045,0.703285,38975.0,38971.0,0.00119695]
[1645876960249,0.703285,38975.0,38969.0,0.0999]
[1645876960443,0.703285,38975.0,38971.0,0.00028753]
[1645876960683,0.02567,38973.0,38971.0,0.00028753]
[1645876960878,0.377615,38972.0,38971.0,0.00028753]
[1645876961279,0.403285,38972.0,38971.0,0.00028753]
[1645876961481,0.403285,38972.0,38969.0,0.0999]
[1645876961679,0.377615,38971.0,38970.0,0.00028753]
[1645876962081,0.703285,38971.0,38970.0,0.00028753]
[1645876962281,0.403285,38971.0,38970.0,0.00028753]
[1645876962479,0.703285,38971.0,38970.0,0.00028753]
[1645876962787,0.703285,38971.0,38969.0,0.0121]
[1645876962788,0.803285,38971.0,38969.0,0.0121]
[1645876962981,0.703285,38970.0,38969.0,0.00028754]
[1645876963178,0.713545,38970.0,38969.0,0.00028754]
[1645876963979,0.403285,38969.0,38966.0,0.002]
[1645876964178,0.403285,38969.0,38968.0,0.00027797]
[1645876964442,1.17567,38968.0,38966.0,9.919e-05]
[1645876964647,0.32567,38967.0,38963.0,0.00012192]
[1645876964842,0.02567,38965.0,38963.0,0.00012192]
[1645876965346,0.47391114,38964.0,38963.0,0.00012192]
[1645876966341,0.52529613,38964.0,38963.0,0.00012192]
[1645876966542,0.14763613,38964.0,38963.0,0.00012192]
[1645876966943,0.17430613,38964.0,38963.0,0.00012192]
[1645876967148,0.54851916,38964.0,38963.0,0.00012192]
[1645876967345,0.52026379,38964.0,38963.0,0.00012192]
[1645876967744,0.49459379,38964.0,38963.0,0.00012192]
[1645876968391,0.51926379,38964.0,38963.0,0.00012192]
[1645876968587,0.11593379,38964.0,38963.0,0.00012192]
[1645876969685,0.49359379,38964.0,38963.0,0.00012192]
[1645876969886,0.11593379,38964.0,38963.0,0.00012192]
[1645876970087,0.49359379,38964.0,38963.0,0.00012192]
[1645876970288,0.49359379,38964.0,38956.0,0.00319707]
[1645876970289,0.02567,38962.0,38959.0,0.001]
[1645876970495,1.23753,38961.0,38959.0,0.001]
[1645876970690,0.7828,38958.0,38957.0,0.00201713]
[1645876970889,1.23753,38958.0,38957.0,0.00201713]
[1645876971288,0.45473,38958.0,38957.0,0.00201713]
[1645876971934,0.37766,38954.0,38953.0,0.24143848]
[1645876972139,1.53753,38954.0,38953.0,0.24143848]
[1645876972334,0.45473,38954.0,38953.0,0.24143848]
[1645876972936,0.42906,38954.0,38953.0,0.24143848]
[1645876973141,0.0514,38954.0,38953.0,0.24143848]
[1645876973335,0.42906,38954.0,38953.0,0.24143848]
[1645876973737,0.0514,38954.0,38953.0,0.24143848]
[1645876973936,0.42906,38954.0,38953.0,0.24143848]
[1645876974137,0.42840636,38954.0,38953.0,0.24143848]
[1645876974736,0.42809764,38954.0,38953.0,0.24143848]
[1645876974937,0.43009764,38954.0,38953.0,0.24143848]
[1645876976385,0.45376764,38954.0,38953.0,0.24143848]
[1645876976583,0.42809764,38954.0,38953.0,0.24143848]
[1645876978984,0.05143764,38954.0,38953.0,0.24143848]
[1645876979189,0.75476764,38954.0,38953.0,0.24143848]
[1645876979440,0.37710764,38954.0,38953.0,0.24143848]
[1645876979841,1.15990764,38954.0,38953.0,0.24143848]
[1645876980340,1.53656764,38954.0,38953.0,0.24143848]
[1645876980842,1.32314664,38954.0,38953.0,0.24143848]
[1645876981240,1.95847,38953.0,38948.0,0.0521]
[1645876981444,1.58613,38951.0,38948.0,0.0521]
[1645876981643,1.72151,38951.0,38948.0,0.0021]
[1645876981939,2.02131,38951.0,38948.0,0.0021]
[1645876982138,1.82151,38951.0,38948.0,0.0021]
[1645876982943,1.14385,38951.0,38948.0,0.0021]
[1645876983179,0.93006,38951.0,38948.0,0.0021]
[1645876983404,1.03006,38951.0,38948.0,0.0021]
[1645876983578,1.02506,38951.0,38948.0,0.0021]
[1645876983979,1.80786,38951.0,38948.0,0.0021]
[1645876984179,1.83353,38951.0,38948.0,0.0021]
[1645876984580,1.83353,38951.0,38949.0,0.00029662]
[1645876984782,1.84279,38951.0,38949.0,0.00029662]
[1645876984981,1.83353,38951.0,38949.0,0.00029662]
[1645876985582,1.83353,38951.0,38946.0,0.00204395]
[1645876985583,1.02567,38948.0,38946.0,0.00204395]
[1645876985782,0.02567,38947.0,38946.0,0.00204395]
[1645876985985,0.42567,38947.0,38943.0,0.00328667]
[1645876986185,0.80847,38945.0,38943.0,0.00328667]
[1645876986383,0.42567,38944.0,38943.0,0.00328667]
[1645876986586,0.12567,38944.0,38943.0,0.00328667]
[1645876986827,0.12567,38944.0,38943.0,0.0021]
[1645876987029,1.20847,38944.0,38943.0,0.0021]
[1645876987530,0.12567,38944.0,38943.0,0.0021]
[1645876987730,0.50333,38944.0,38943.0,0.0021]
[1645876987930,0.12567,38944.0,38943.0,0.0021]
[1645876988130,0.50333,38944.0,38943.0,0.0021]
[1645876988330,0.42567,38944.0,38943.0,0.0021]
[1645876988731,0.20676954,38945.0,38943.0,0.0021]
[1645876988933,0.37766,38944.0,38943.0,0.0021]
[1645876989332,0.20676954,38945.0,38943.0,0.0021]
[1645876989533,0.0079,38943.0,38942.0,0.00229635]
[1645876990333,0.0079,38943.0,38942.0,0.002]
[1645876991098,0.80847,38941.0,38937.0,0.002]
[1645876991294,1.58613,38940.0,38937.0,0.002]
[1645876991488,1.63753,38940.0,38937.0,0.002]
[1645876991686,1.63753,38940.0,38939.0,0.00191713]
[1645876992687,1.63753,38940.0,38935.0,0.001]
[1645876992688,1.95847,38937.0,38935.0,0.001]
[1645876992889,1.53753,38936.0,38935.0,0.001]
[1645876993088,1.63753,38936.0,38935.0,0.001]
[1645876993487,1.63753,38936.0,38930.0,0.002]
[1645876993488,0.80847,38934.0,38930.0,0.002]
[1645876993694,0.80847,38930.0,38922.0,0.5384]
[1645876993888,1.53753,38930.0,38922.0,0.5384]
[1645876994350,1.53753,38930.0,38923.0,0.1009]
[1645876994351,0.80847,38926.0,38923.0,0.1009]
[1645876994545,0.80333,38925.0,38923.0,0.1009]
[1645876994844,0.50333,38925.0,38923.0,0.001]
[1645876995043,0.77766,38925.0,38923.0,0.001]
[1645876995445,0.377729,38925.0,38923.0,0.001]
[1645876995646,0.0514,38930.0,38923.0,0.001]
[1645876995647,0.125936,38930.0,38923.0,0.001]
[1645876995846,0.0514,38930.0,38923.0,0.001]
[1645876996248,0.377729,38929.0,38923.0,0.001]
[1645876996845,0.377729,38928.0,38923.0,0.001]
[1645876997046,0.377729,38927.0,38923.0,0.001]
[1645876997245,0.377729,38929.0,38923.0,0.001]
[1645876997445,0.0514,38930.0,38923.0,0.001]
[1645876997645,0.377729,38929.0,38923.0,0.001]
[1645876997847,0.0514,38930.0,38925.0,0.00029546]
[1645876998077,0.05098077,38930.0,38925.0,0.00029546]
[1645876998277,0.20653004,38930.0,38925.0,0.00029546]
[1645876998677,0.376825,38929.0,38925.0,0.00029546]
[1645876998882,0.01,38929.0,38923.0,0.001]
[1645876999079,0.31,38929.0,38926.0,0.00029546]
[1645876999478,0.01,38929.0,38926.0,0.00029546]
[1645876999887,0.01,38929.0,38927.0,0.47772]
[1645877000081,0.01,38929.0,38927.0,0.37772]
[1645877000682,0.01,38929.0,38927.0,0.47772]
[1645877001081,0.01,38929.0,38927.0,0.37772]
[1645877001285,0.00140636,38929.0,38927.0,0.37772]
[1645877002927,0.00354003,38929.0,38927.0,0.37772]
[1645877003329,0.2004,38939.0,38926.0,0.00027216]
[1645877003330,0.2004,38939.0,38929.0,1.15708006]
[1645877003530,0.2004,38939.0,38931.0,0.1]
[1645877003829,0.2004,38939.0,38932.0,0.635269]
[1645877004429,0.2004,38939.0,38932.0,0.0514]
[1645877005786,0.9832,38939.0,38932.0,0.0514]
[1645877005989,0.2004,38939.0,38932.0,0.0514]
[1645877006589,0.2004,38939.0,38932.0,0.04714395]
[1645877008086,0.2004,38939.0,38930.0,0.10017457]
[1645877008486,0.2004,38939.0,38930.0,0.0999]
[1645877008688,0.2004,38939.0,38930.0,0.10017457]
[1645877009536,0.13753384,38936.0,38930.0,0.10017457]
[1645877009736,0.13753384,38936.0,38930.0,0.0949]
[1645877009937,0.13753384,38936.0,38933.0,0.00432874]
[1645877010735,0.13745548,38936.0,38933.0,0.00432874]
[1645877011237,0.13739548,38936.0,38933.0,0.00432874]
[1645877012337,0.92019548,38936.0,38933.0,0.00432874]
[1645877012537,0.37772,38935.0,38933.0,0.00432874]
[1645877012740,0.9832,38939.0,38933.0,0.00424587]
[1645877013986,1.00887,38939.0,38933.0,0.00424587]
[1645877014385,0.9832,38939.0,38933.0,0.00424587]
[1645877015587,0.2004,38939.0,38933.0,0.00424587]
[1645877015788,0.001,38936.0,38933.0,0.00424587]
[1645877017035,0.2004,38939.0,38933.0,0.00424587]
[1645877020032,0.2014,38939.0,38933.0,0.00424587]
[1645877023105,0.18476862,38939.0,38933.0,0.00424587]
[1645877023305,0.18376862,38939.0,38933.0,0.00424587]
[1645877024935,0.37772,38938.0,38933.0,0.00424587]
[1645877025134,0.7828,38938.0,38933.0,0.00424587]